Cogmind - Beta 15 @@@ ROGUE MODE // 2025.09.23 @ 20:54:22 Player: GermanMO Result: Destroyed by Explosive Trap Performance ------------- Evolutions (2) 1000 Regions Visited (7) 1400 Robots Destroyed (44) 220 Value Destroyed (1256) 1256 Prototype IDs (5) 100 Alien Tech Used (0) 0 Bonus (55) 55 TOTAL SCORE: 4031 Bonus ------- High Alert Combat Kills 55 Cogmind --------- Core Integrity 0/550 Matter 270/300 Energy 73/100 System Corruption 0% Temperature Cool (6) Movement Flying (29) Location -8/Storage Parts ------- > --- POWER (2) -------- (None) > --- PROPULSION (3) --- Improved VTOL Module Improved VTOL Module Improved VTOL Module > --- UTILITY (4) ------ Utility Shielding > --- WEAPON (2) ------- (None) > --- INVENTORY (5) ---- Improved Sensor Array Terrain Scanner Terrain Scan Processor Peak State ------------ > --- POWER ------------ Ion Engine Nuclear Core > --- PROPULSION ------- Aluminum Leg Aluminum Leg Aluminum Leg > --- UTILITY ---------- Targeting Computer Transmission Jammer Core Shielding Utility Shielding > --- WEAPON ----------- Improved Spread Laser Heavy Rocket Launcher > --- INVENTORY -------- Light Deuterium Engine Terrain Scanner Ion Cannon Heavy Rocket Launcher [Rating: 24] Favorites ----------- Power Ion Engine Engine Ion Engine Power Core Nuclear Core Propulsion Aluminum Leg Leg Aluminum Leg Wheel Wheel Flight Unit Improved VTOL Module Utility Weapon Shielding Device Transmission Jammer Processor Targeting Computer Protection Weapon Shielding Weapon Assault Rifle Energy Gun Improved Spread Laser Energy Cannon Ion Cannon Ballistic Gun Assault Rifle Launcher Grenade Launcher Build | -11 -10 -9 -9 -9 -8 -8 -8 ------- Run | Yrd Mat Mat Min Exi Min Mat Sto Slots Evolved 4 | . . 2 . . . 2 . Power 1 | . . . . . . 1 . Propulsion 1 | . . 1 . . . . . Utility 2 | . . 1 . . . 1 . Weapon . | . . . . . . . . Parts Attached 31 | 5 4 2 . . 4 5 11 Power 6 | 1 . . . . 2 . 3 Engine 4 | 1 . . . . 1 . 2 Core 2 | . . . . . 1 . 1 Reactor . | . . . . . . . . Propulsion 9 | 2 . 1 . . . 1 5 Treads . | . . . . . . . . Leg 4 | 2 . 1 . . . 1 . Wheel 2 | . . . . . . . 2 Hover . | . . . . . . . . Flight 3 | . . . . . . . 3 Utility 7 | . 3 1 . . 1 2 . Device 1 | . . . . . . 1 . Storage . | . . . . . . . . Processor 1 | . . . . . . 1 . Hackware . | . . . . . . . . Protection 5 | . 3 1 . . 1 . . Artifact . | . . . . . . . . Weapon 9 | 2 1 . . . 1 2 3 Energy Gun 2 | . . . . . . 1 1 Energy Cannon 1 | . . . . . . . 1 Ballistic Gun 2 | 2 . . . . . . . Ballistic Cannon . | . . . . . . . . Launcher 4 | . 1 . . . 1 1 1 Special Weapon . | . . . . . . . . Impact Weapon . | . . . . . . . . Slashing Weapon . | . . . . . . . . Piercing Weapon . | . . . . . . . . Special Melee Weapon . | . . . . . . . . Unidentified Prototypes 3 | . . . . . . 1 2 Parts Lost 22 | . . . . . 4 3 15 Power 5 | . . . . . 1 . 4 Propulsion 6 | . . . . . . 1 5 Utility 3 | . . . . . 1 1 1 Weapon 8 | . . . . . 2 1 5 Highest Loss Streak 5 | . . . . . 4 3 5 To Critical Strikes 1 | . . . . . . . 1 Average Backups 3 | 1 4 4 4 4 3 3 4 Power . | . 1 1 1 1 1 1 . Propulsion . | . . . . . . . . Utility 1 | . 1 1 1 1 1 1 2 Weapon 1 | . 1 1 2 2 1 1 1 Tool/Special . | . . . . . . . . Unused Backups 4 | . 1 . . . . . 3 Power . | . . . . . . . . Propulsion . | . . . . . . . . Utility 3 | . . . . . . . 3 Weapon 1 | . 1 . . . . . . Tool/Special . | . . . . . . . . Average Slot Usage (%) 90 | . 97 90 100 100 96 91 62 Engine 9 | . 14 11 11 11 7 9 6 Core 2 | . . . . . 3 9 3 Leg 25 | . 28 28 33 33 33 22 3 Device 1 | . . . . . . 3 8 Processor 1 | . . . . . . 8 8 Protection 25 | . 25 28 33 33 30 21 11 Energy Gun 1 | . . . . . . 3 8 Ballistic Gun 9 | . 14 10 11 11 11 5 . Launcher 10 | . 13 11 11 11 11 8 5 Peak Build Rating 24 | 5 7 9 9 9 12 24 24 Average Rating 10 | 3 6 8 9 9 9 17 17 On Entrance 9 | . 5 7 9 9 9 12 24 Naked Turns . | . . . . . . . . Heaviest Build 26 | 8 12 13 13 13 15 26 26 Greatest Support 30 | 20 20 30 30 30 30 30 30 Greatest Overweight (x) 8 | . . . . . . 1 8 Average Overweight (x) . | . . . . . . . 1 Largest Inventory Capacity 5 | 5 5 5 5 5 5 5 5 Average Capacity 5 | 5 5 5 5 5 5 5 5 Most Carried 5 | 5 5 5 4 4 5 5 5 Average Carried 3 | 1 4 4 4 4 3 3 3 Final Capacity 5 | 5 5 5 5 5 5 5 5 Final Carried 5 | 2 5 4 4 4 5 5 3 Class Distribution -------------------- 94% | Mutant 5% | Derelict-Mutant Dominant Class ---------------- Mutant | -10/Materials Mutant | -9/Materials Mutant | -9/Mines Mutant | -9/Exiles Mutant | -8/Mines Mutant | -8/Materials Mutant | -8/Storage Resources | -11 -10 -9 -9 -9 -8 -8 -8 ----------- Run | Yrd Mat Mat Min Exi Min Mat Sto Matter Collected 847 | 224 170 10 . . 170 45 228 Remotely . | . . . . . . . . Salvage Created 1045 | . 82 21 . . 162 101 679 Parts 82 | . 8 8 . . 10 8 48 Haulers Intercepted 2 | . . . . . . . 2 Recyclers Shooed 1 | . . . . . . . 1 Parts Field Recycled . | . . . . . . . . Retrieved Matter . | . . . . . . . . Parts Self-Destructed . | . . . . . . . . Prevented . | . . . . . . . . Kills | -11 -10 -9 -9 -9 -8 -8 -8 ------- Run | Yrd Mat Mat Min Exi Min Mat Sto Combat Hostiles Destroyed 35 | . 4 3 . . 7 4 17 Guns 12 | . 1 . . . 2 . 9 Cannons 2 | . . . . . . . 2 AOE 21 | . 3 3 . . 5 4 6 Classes Destroyed 9 | . 2 1 . . . 3 3 Worker 2 | . . . . . . . 2 Builder 3 | . . . . . . 3 . Hauler 2 | . . . . . . . 2 Recycler 1 | . . . . . . . 1 Operator 1 | . 1 . . . . . . Swarmer 14 | . . 3 . . 4 . 7 Grunt 17 | . 4 . . . 3 2 8 Sentry 3 | . . . . . . 1 2 Hunter 1 | . . . . . . 1 . Best Kill Streak 10 | . 2 3 . . 4 4 10 Combat Bots Only 8 | . 2 3 . . 4 4 8 Max Kills in Single Turn 3 | . 2 3 . . 3 3 3 Gunslinging . | . . . . . . . . Exploded 3 | . 2 3 . . 3 3 3 Melee . | . . . . . . . . Uniques/NPCs Destroyed . | . . . . . . . . Combat | -11 -10 -9 -9 -9 -8 -8 -8 -------- Run | Yrd Mat Mat Min Exi Min Mat Sto Hostile Shots Fired 209 | . 12 24 . . 34 12 127 Missed 50 | . 2 5 . . 8 4 31 Hits 159 | . 10 19 . . 26 8 96 Projectile 159 | . 10 19 . . 26 8 96 Critical Strikes 9 | . . 2 . . . . 7 Actively Blocked 3 | . . 2 . . . . 1 Damage Taken 2359 | . 163 245 . . 436 124 1391 Core 755 | . 44 91 . . 67 8 545 Absorbed by Shields 16 | . . . . . . . 16 Redirected to Shielding 163 | . 25 34 . . 77 10 17 Core Remaining (%) 80 | 100 82 . . . 60 . . Volleys Fired 109 | . 18 10 . . 23 4 54 Largest 2 | . 2 2 . . 2 2 2 Hottest 135 | . 50 50 . . 53 59 135 Shots Fired 137 | . 23 11 . . 30 7 66 Gun 93 | . 18 9 . . 23 3 40 Cannon 17 | . . . . . . . 17 Launcher 27 | . 5 2 . . 7 4 9 Special . | . . . . . . . . Kinetic 53 | . 18 9 . . 23 3 . Thermal 57 | . . . . . . . 57 Explosive 23 | . 5 2 . . 3 4 9 Electromagnetic 4 | . . . . . 4 . . Robot Hit Streak 10 | . 10 1 . . 8 5 9 Robot Miss Streak 8 | . 7 4 . . 2 1 8 Penetration Max . | . . . . . . . . Secondary Targets . | . . . . . . . . Shots Hit Robots 90 | . 14 2 . . 22 6 46 Core Hits 87 | . 11 4 . . 16 14 42 Critical Kills . | . . . . . . . . Critical Parts Destroyed . | . . . . . . . . Critical Strikes . | . . . . . . . . Melee Attacks . | . . . . . . . . Impact . | . . . . . . . . Slashing . | . . . . . . . . Piercing . | . . . . . . . . Sneak Attacks . | . . . . . . . . Combat Hostiles . | . . . . . . . . Follow-up Attacks . | . . . . . . . . Damage Inflicted 3318 | . 416 179 . . 654 691 1378 Guns 872 | . 127 22 . . 134 27 562 Cannons 235 | . . . . . . . 235 Explosions 2209 | . 289 157 . . 518 664 581 Melee . | . . . . . . . . Ramming 2 | . . . . . 2 . . Kinetic 310 | . 127 22 . . 134 27 . Thermal 842 | . . . . . 45 . 797 Explosive 2003 | . 289 157 . . 312 664 581 Electromagnetic 161 | . . . . . 161 . . Impact . | . . . . . . . . Slashing . | . . . . . . . . Piercing . | . . . . . . . . Highest Corruption . | . . . . . . . . Average Corruption . | . . . . . . . . Corruption Purged . | . . . . . . . . Corruption Blocked . | . . . . . . . . Overload Shots . | . . . . . . . . Overflow Damage 171 | . . . . . 9 11 151 Projectiles . | . . . . . . . . Explosions 171 | . . . . . 9 11 151 Melee . | . . . . . . . . Knockbacks . | . . . . . . . . Impact . | . . . . . . . . Kinetic . | . . . . . . . . Secondary . | . . . . . . . . Self-Inflicted Damage 255 | . 29 49 . . 49 . 128 Shots 15 | . 4 2 . . 5 . 4 Rammed . | . . . . . . . . Targets Rammed 1 | . . . . . 1 . . Kicked 1 | . . . . . 1 . . Crushed . | . . . . . . . . Highest Temperature 191 | . 25 . . . 21 40 191 Average Temperature 60 | . 13 . . . 8 18 72 Received Heat Transfer 861 | . 69 18 . . 180 27 567 Siege Activations . | . . . . . . . . Martial Activations . | . . . . . . . . Shielding Activations . | . . . . . . . . Robots Disrupted . | . . . . . . . . Combat Hostiles . | . . . . . . . . Robots Corrupted . | . . . . . . . . Combat Hostiles . | . . . . . . . . Parts Fried 1 | . . . . . 1 . . Impact Corruptions . | . . . . . . . . Robots Melted . | . . . . . . . . Combat Hostiles . | . . . . . . . . Parts Melted 1 | . . . . . . . 1 Heat Transferred 1106 | . . . . . . . 1106 Parts Sabotaged . | . . . . . . . . Parts Stolen . | . . . . . . . . Parts Stripped . | . . . . . . . . Power Chain Reactions 1 | . . . . . 1 . . Alert | -11 -10 -9 -9 -9 -8 -8 -8 ------- Run | Yrd Mat Mat Min Exi Min Mat Sto Maximum Alert Level 2 | . . . . . . . 2 Low Security (%) 88 | 100 100 100 100 . 100 100 36 Level 1 5 | . . . . . . . 34 Level 2 5 | . . . . . . . 28 Level 3 . | . . . . . . . . Level 4 . | . . . . . . . . Level 5 . | . . . . . . . . High Security . | . . . . . . . . Max Security . | . . . . . . . . Peak Influence 422 | . 63 79 13 . 103 156 422 Initial 61 | . . 2 13 . . 33 61 Average 62 | . 12 27 7 . 24 84 250 Influence Increases 1344 | . 154 117 . . 242 186 645 Destroy 0b10 Robot/C 700 | . 80 60 . . 140 80 340 Destroy 0b10 Robot/NC 45 | . 5 . . . . 15 25 Destroy Leader 124 | . 10 10 . . 20 30 54 Successful Hack 5 | . 5 . . . . . . Disable Machine 180 | . 15 . . . 15 30 120 Destroy Structure 185 | . 24 17 . . 22 31 91 Lose Combat Pursuer 105 | . 15 30 . . 45 . 15 Influence Decreases 968 | . 147 88 36 . 155 127 415 Entered New Map 167 | . . 5 23 . . 54 85 Time Decay 600 | . 147 83 13 . 134 43 180 Lost Part 201 | . . . . . 21 30 150 Squads Dispatched 6 | . . 1 . . . 2 3 Investigation 1 | . . . . . . 1 . Extermination . | . . . . . . . . Reinforcement 4 | . . 1 . . . 1 2 Assault . | . . . . . . . . Garrison 1 | . . . . . . . 1 Intercept . | . . . . . . . . Searches Triggered . | . . . . . . . . Construction Impeded . | . . . . . . . . Haulers Reinforced . | . . . . . . . . Active Scanning Responses . | . . . . . . . . Cargo Convoy Interrupts . | . . . . . . . . Stealth | -11 -10 -9 -9 -9 -8 -8 -8 --------- Run | Yrd Mat Mat Min Exi Min Mat Sto Distress Signals 2 | . . 1 . . . . 1 Communications Jammed 18 | . . . . . . . 18 Distress Signals 16 | . . . . . . . 16 Times Spotted 69 | . 18 9 . . 10 5 27 Peak Tracking Total 6 | . 4 3 . . 4 5 6 Tactical Retreats 5 | . 1 1 . . 2 . 1 Traps | -11 -10 -9 -9 -9 -8 -8 -8 ------- Run | Yrd Mat Mat Min Exi Min Mat Sto Traps Triggered 6 | . 1 1 . . . 1 3 Indirectly . | . . . . . . . . Trap Hack Attempts . | . . . . . . . . Triggered . | . . . . . . . . Disarmed . | . . . . . . . . Reprogrammed . | . . . . . . . . Reused . | . . . . . . . . Traps Extracted . | . . . . . . . . Installed . | . . . . . . . . Triggered . | . . . . . . . . Machines | -11 -10 -9 -9 -9 -8 -8 -8 ---------- Run | Yrd Mat Mat Min Exi Min Mat Sto Machines Disabled 12 | . 1 . . . 1 2 8 Max in Single Turn 2 | . 1 . . . 1 1 2 Machines Repaired . | . . . . . . . . Machines Dismantled . | . . . . . . . . Machines Sabotaged . | . . . . . . . . Overloaded Fab Kills . | . . . . . . . . Hacking | -11 -10 -9 -9 -9 -8 -8 -8 --------- Run | Yrd Mat Mat Min Exi Min Mat Sto Machines Accessed 2 | . 2 . . . . . . Terminals 2 | . 2 . . . . . . Fabricators . | . . . . . . . . Repair Stations . | . . . . . . . . Recycling Units . | . . . . . . . . Scanalyzers . | . . . . . . . . Garrison Access . | . . . . . . . . Total Hacks 2 | . 2 . . . . . . Successful 2 | . 2 . . . . . . Failed . | . . . . . . . . Catastrophic . | . . . . . . . . Database Lockouts . | . . . . . . . . Manual . | . . . . . . . . Terminals 2 | . 2 . . . . . . Fabricators . | . . . . . . . . Repair Stations . | . . . . . . . . Recycling Units . | . . . . . . . . Scanalyzers . | . . . . . . . . Garrison Access . | . . . . . . . . Terminal Hacks 2 | . 2 . . . . . . Record 1 | . 1 . . . . . . Prototype ID Bank 1 | . 1 . . . . . . Fabricator Hacks . | . . . . . . . . Repair Station Hacks . | . . . . . . . . Recycling Unit Hacks . | . . . . . . . . Scanalyzer . | . . . . . . . . Garrison Access Hacks . | . . . . . . . . Unauthorized Hacks . | . . . . . . . . Terminals . | . . . . . . . . Fabricators . | . . . . . . . . Repair Stations . | . . . . . . . . Recycling Units . | . . . . . . . . Scanalyzers . | . . . . . . . . Garrison Access . | . . . . . . . . Data Cores Recovered 1 | . 1 . . . . . . Used . | . . . . . . . . Hacking Detections 1 | . 1 . . . . . . Full Trace Events . | . . . . . . . . Feedback Events . | . . . . . . . . Feedback Blocked . | . . . . . . . . Robot Schematics Acquired . | . . . . . . . . Robots Built . | . . . . . . . . Authchips . | . . . . . . . . Time . | . . . . . . . . Total Robot Build Rating . | . . . . . . . . Part Schematics Acquired . | . . . . . . . . Parts Built . | . . . . . . . . Authchips . | . . . . . . . . Time . | . . . . . . . . Total Part Build Rating . | . . . . . . . . Parts Repaired . | . . . . . . . . Time . | . . . . . . . . Parts Recycled . | . . . . . . . . Recycled Matter . | . . . . . . . . Retrieved Matter . | . . . . . . . . Retrieved Components . | . . . . . . . . Parts Scanalyzed . | . . . . . . . . Part Schematics Acquired . | . . . . . . . . Parts Damaged . | . . . . . . . . Bothacking | -11 -10 -9 -9 -9 -8 -8 -8 ------------ Run | Yrd Mat Mat Min Exi Min Mat Sto Used RIF Installer . | . . . . . . . . Robots Hacked . | . . . . . . . . Non-combat . | . . . . . . . . Combat . | . . . . . . . . Robot Hacks Applied . | . . . . . . . . Relay Couplers Released . | . . . . . . . . Fabnet Peak Effective % . | . . . . . . . . Robots Rewired . | . . . . . . . . Allies Hacked . | . . . . . . . . Hacks Repelled . | . . . . . . . . Allies | -11 -10 -9 -9 -9 -8 -8 -8 -------- Run | Yrd Mat Mat Min Exi Min Mat Sto Total Allies . | . . . . . . . . Largest Group . | . . . . . . . . Highest-Rated Group . | . . . . . . . . Highest-Rated Ally . | . . . . . . . . Total Orders . | . . . . . . . . Ally Attacks . | . . . . . . . . Total Damage . | . . . . . . . . Kills . | . . . . . . . . Allies Corrupted . | . . . . . . . . Allies Melted . | . . . . . . . . Intel | -11 -10 -9 -9 -9 -8 -8 -8 ------- Run | Yrd Mat Mat Min Exi Min Mat Sto Active Infowar (turns) 294 | . . . . . . 35 259 Jamming 294 | . . . . . . 35 259 Robot Analysis Total . | . . . . . . . . Derelict Logs Recovered . | . . . . . . . . Drone Launches . | . . . . . . . . Drone Recoveries . | . . . . . . . . Exploration | -11 -10 -9 -9 -9 -8 -8 -8 ------------- Run | Yrd Mat Mat Min Exi Min Mat Sto Turns Passed 2188 | 48 622 270 42 35 692 103 376 Spaces Moved 1489 | 40 460 204 36 30 481 57 181 Core 65 | 16 . . . . . . 49 Treads . | . . . . . . . . Legs 1325 | 24 460 204 36 30 481 57 33 Wheels 53 | . . . . . . . 53 Hover . | . . . . . . . . Flight 46 | . . . . . . . 46 Fastest Speed 29 | 50 120 120 120 120 120 120 29 Average Speed 120 | 92 120 120 120 120 120 142 125 Slowest Speed 450 | 120 120 120 120 120 120 190 450 Overloaded Moves . | . . . . . . . . Propulsion Burnouts . | . . . . . . . . Robots Hopped 1 | . . . . . . . 1 Potential Cave-ins . | . . . . . . . . Cave-ins Triggered . | . . . . . . . . Exploration Rate (%) 29 | 3 74 21 7 8 77 11 38 Regions Visited 7 Branch Regions 4 Pre-discovered Areas . | . . . . . . . . Known Exits Taken . | . . . . . . . . Unknown Exits Taken 7 | 1 1 1 1 1 1 1 . Scrap Searched 2 | . . . . . 2 . . Spaces Dug 7 | . . 7 . . . . . Terrain Destroyed 221 | . 27 14 . . 36 41 103 Melee . | . . . . . . . . Projectile . | . . . . . . . . AOE 221 | . 27 14 . . 36 41 103 Terrain Rammed . | . . . . . . . . Walls Destroyed . | . . . . . . . . Machines Disabled . | . . . . . . . . Actions | -11 -10 -9 -9 -9 -8 -8 -8 --------- Run | Yrd Mat Mat Min Exi Min Mat Sto Total 1748 | 51 508 218 35 29 569 73 265 Wait 80 | . 17 . . . 55 . 8 Move 1480 | 39 459 203 35 29 480 56 179 Hop 1 | . . . . . . . 1 Pick Up 36 | 7 7 2 . . 5 6 9 Fast Attach . | . . . . . . . . Attach 33 | 5 4 3 . . 4 6 11 Detach 1 | . 1 . . . . . . Swap 1 | . . . . . 1 . . Drop 6 | . 2 . . . . 1 3 Fire 109 | . 18 10 . . 23 4 54 Melee . | . . . . . . . . Ram . | . . . . . . . . Kick 1 | . . . . . 1 . . Crush . | . . . . . . . . Escape Stasis . | . . . . . . . . Rewire . | . . . . . . . . Trap . | . . . . . . . . Miscellaneous . | . . . . . . . . Route ------- -11/Scrapyard -10/Materials (discovered 3 exits: [*Mat x2] / [*Min]) -9/Materials -9/Mines -9/Exiles -8/Mines -8/Materials -8/Storage History --------- Turn | Location | Event 8 | -11/Scrapyard | Discovered new exit (range 16) 49 | -11/Scrapyard | Entered Materials 303 | -10/Materials | Build established: Mutant 392 | -10/Materials | Discovered new exit (range 7) 446 | -10/Materials | Discovered new exit (range 15) 489 | -10/Materials | Discovered new exit (range 8) 671 | -10/Materials | Entered another Materials area 671 | -9/Materials | Evolved 2 slots: Propulsion x1, Utility x1 934 | -9/Materials | Discovered new exit (range 6) 941 | -9/Materials | Entered Mines 979 | -9/Mines | Deemed a non-threat by the Exiles lab entrance 979 | -9/Mines | Discovered new exit (range 5) 983 | -9/Mines | Entered Exiles 1001 | -9/Exiles | Discovered new exit (range 15) 1018 | -9/Exiles | Entered Mines 1355 | -8/Mines | Lost 4 parts (1p1u2w) 1601 | -8/Mines | Discovered new exit (range 14) 1710 | -8/Mines | Entered Materials 1710 | -8/Materials | Evolved 2 slots: Power x1, Utility x1 1746 | -8/Materials | Discovered new exit (range 15) 1786 | -8/Materials | Lost 3 parts (1n1u1w) 1813 | -8/Materials | Entered Storage 1974 | -8/Storage | Lost 3 parts (1p1u1w) 2001 | -8/Storage | Destroyed 8 combat bots 2079 | -8/Storage | Destroyed 7 combat bots 2092 | -8/Storage | Lost 5 parts (1p2n2w) 2138 | -8/Storage | Garrison activated, responded to threat 2139 | -8/Storage | Core integrity fell below 50% 2167 | -8/Storage | Core integrity fell below 20% 2189 | -8/Storage | Destroyed by Explosive Trap Last Messages --------------- K-01 Serf collects debris. Dropped Transmission Jammer. Discarded Targeting Computer. K-01 Serf collects debris. R-06 Scavenger collects Transmission Jammer. R-06 Scavenger collects Lgt. Assault Rifle. K-01 Serf destroyed. R-06 Scavenger collects Particle Gun. Hvy. Particle Gun destroyed. S-10 Pest destroyed. Acquired Prototype Flight Unit. Identified Imp. VTOL Module. Acquired Imp. VTOL Module. R-06 Scavenger inserts Aluminum Leg into recycling unit. Recycling unit begins recycling process. Triggered Explosive Trap. An explosion rips through the floor. Triggered Explosive Trap. An explosion rips through the floor. Map ----- +----------------------------------------------------+ | ???????????????# # ## ????????? | | ???????????????# """ """ #%## #? ????????? | | ?????????#####?# """ """ #% %= +???????? | | ?????????#== #?# """ "" # # # #???????? | | ?????????#= #?# # # #?#???????? | | ?????????#" "### # + ????????? | | ?????????# T## # # ??????? | | ############+######/######## # """" ?????? | | # # "?????????? | | # +?"?????????? | | # #???????????? | | #########%######+#########"Y"# #???????????? | | ????????#=#??# #"""# #???????????? | | ????#####/#### ##### #???????????? | | ????# # #???# #???????????? | | ????# """"""*#* #???# #???????????? | | ????# "???!"=#%*! #####+#####???????? | | ????# "??/%"[#+############ #???????? | | ????#=""" ""[/%%% # """" #???????? | | ????#!= =![#[= [%= # "??"" #???????? | | ????#%% [%####### # # # "???"" #???????? | | ????#!=[%! [# = # # ""???" #???????? | | ????#=%[!% !# """ # ""??" #???????? | | ????###"##"### "" """" #???????? | | ??????#% #???""" "" #???????? | | ??????# #?# @ #???????? | | ??????# #?########## ##########???????? | | ??????# #??????????## #????????????????? | | ?????? #??????????# ????????????????? | | ?????? ????????? Y ????????????????? | | ??????#+#####??????? ????????????????? | | ??????? ???????????#### ????????????????? | | ??????? ??????????????##+###???????????????? | | ??????? ???????????????????????????????????? | | ??????? ???????????????????????????????????? | | ??????? ???????????????????????????????????? | | ??????? ???????????????????????????????????? | | ??????? ???????????????????????????????????? | | ???????????????????????????????????????????? | | ???????????????????????????????????????????? | | ???????????????????????????????????????????? | | ???????????????????????????????????????????? | | ???????????????????????????????????????????? | | ???????????????????????????????????????????? | | | | | | | | | | | | | +----------------------------------------------------+ Best States ------------- Heat Dissipation 31 Energy Generation 23 Energy Capacity 390 Matter Stores 300 Matter Capacity 300 Sight Range 16 Terrain Scan Density 10 Jamming Range 12 Core Shielding 20 Utility Shielding 33 Weapon Shielding 33 Evasion (%) 64 Targeting Accuracy 5 Item Schematics ----------------- None Robot Schematics ------------------ None Fabricated ------------ Nothing Repaired ---------- Nothing Alien Tech Used ----------------- None Achievements -------------- Total Silence Challenges ------------ None Game ------ Seed GravjetAdvancedBox Manual? 0 Play Time 00:27:31 Cumulative 17.6 hours Start 2025.09.23 @ 20:22:59 End 2025.09.23 @ 20:54:22 Sessions 1 Manual Loads 0 Difficulty Rogue Special Mode None Game No. 23 Rogue 5 Adventurer 0 Explorer 18 Win Type - Total 0 Types 0/0/0/0/0/0/0/0/0/0 Lore% 11 Gallery% 19 Achievement% 25 Wizard Run 0 Options --------- Layout 2 ASCII 0 Keyboard 0 Movement Mouse Keybinds 0 Fullscreen 2 Font 24/Smallcaps Map View 50x44 Zoom Use 0% Tactical HUD 0 Map Filters NONE Filters NONE Steam 1 RUN: aebbad6c-0218-4c8a-a6e8-cf3262119ed5